[Event "Titled Tuesday Blitz January 03 Early 2023"]
[White "Kamsky, Gata"]
[Black "Kaasen, Tor Fredrik"]
[WhiteFideId "2000024"]
[BlackFideId "1516647"]
[WhiteElo "2665"]
[BlackElo "2480"]
[Result "1-0"]
[Round "04"]
[TimeControl "180+2"]
[Date "2023.01.03"]
[WhiteClock "0:00:22"]
[BlackClock "0:00:03"]

1. d4 {[%clk 0:03:00]}  Nf6 {[%clk 0:02:59]} 2. Bf4 {[%clk 0:02:58]}  g6 {[%clk 0:02:58]} 3. c3 {[%clk 0:02:56]}  Bg7 {[%clk 0:02:58]} 4. Nf3 {[%clk 0:02:53]}  O-O {[%clk 0:02:58]} 5. Nbd2 {[%clk 0:02:51]}  d6 {[%clk 0:02:56]} 6. e4 {[%clk 0:02:50]}  c5 {[%clk 0:02:51]} 7. dxc5 {[%clk 0:02:50]}  dxc5 {[%clk 0:02:52]} 8. h3 {[%clk 0:02:50]}  Nc6 {[%clk 0:02:52]} 9. Be2 {[%clk 0:02:49]}  b6 {[%clk 0:02:49]} 10. O-O {[%clk 0:02:49]}  Bb7 {[%clk 0:02:50]} 11. Re1 {[%clk 0:02:42]}  e5 {[%clk 0:02:17]} 12. Bg5 {[%clk 0:02:23]}  h6 {[%clk 0:02:12]} 13. Bxf6 {[%clk 0:02:18]}  Qxf6 {[%clk 0:02:13]} 14. Nc4 {[%clk 0:01:58]}  Rfd8 {[%clk 0:01:54]} 15. Qb3 {[%clk 0:01:54]}  Qe6 {[%clk 0:01:43]} 16. a4 {[%clk 0:01:52]}  Rab8 {[%clk 0:01:30]} 17. a5 {[%clk 0:01:36]}  bxa5 {[%clk 0:01:07]} 18. Qb5 {[%clk 0:01:26]}  Bf8 {[%clk 0:00:56]} 19. Bf1 {[%clk 0:01:22]}  Ba8 {[%clk 0:00:54]} 20. Qa4 {[%clk 0:01:21]}  Kg7 {[%clk 0:00:50]} 21. Nfd2 {[%clk 0:01:14]}  Rd7 {[%clk 0:00:24]} 22. Nb3 {[%clk 0:01:09]}  Rdb7 {[%clk 0:00:21]} 23. Nbxa5 {[%clk 0:01:07]}  Nxa5 {[%clk 0:00:22]} 24. Qxa5 {[%clk 0:01:08]}  Be7 {[%clk 0:00:16]} 25. Qa6 {[%clk 0:01:00]}  Qxa6 {[%clk 0:00:07]} 26. Rxa6 {[%clk 0:01:00]}  f6 {[%clk 0:00:06]} 27. Rea1 {[%clk 0:00:59]}  Rc7 {[%clk 0:00:03]} 28. Rxa7 {[%clk 0:00:58]}  Rxa7 {[%clk 0:00:02]} 29. Rxa7 {[%clk 0:00:58]}  Kf8 {[%clk 0:00:03]} 30. f3 {[%clk 0:00:57]}  Bc6 {[%clk 0:00:03]} 31. Ra2 {[%clk 0:00:42]}  Bb5 {[%clk 0:00:03]} 32. Ne3 {[%clk 0:00:41]}  Be8 {[%clk 0:00:02]} 33. Bc4 {[%clk 0:00:40]}  Bd7 {[%clk 0:00:01]} 34. g4 {[%clk 0:00:38]}  Bd8 {[%clk 0:00:01]} 35. Kf2 {[%clk 0:00:31]}  f5 {[%clk 0:00:02]} 36. exf5 {[%clk 0:00:28]}  gxf5 {[%clk 0:00:02]} 37. Nxf5 {[%clk 0:00:28]}  Bxf5 {[%clk 0:00:03]} 38. gxf5 {[%clk 0:00:28]}  Rb6 {[%clk 0:00:03]} 39. Ke3 {[%clk 0:00:27]}  Ke7 {[%clk 0:00:04]} 40. Ke4 {[%clk 0:00:28]}  Bc7 {[%clk 0:00:03]} 41. b3 {[%clk 0:00:28]}  Kd8 {[%clk 0:00:03]} 42. Rg2 {[%clk 0:00:25]}  Bd6 {[%clk 0:00:02]} 43. Rg6 {[%clk 0:00:25]}  Ke7 {[%clk 0:00:02]} 44. Re6+ {[%clk 0:00:25]}  Kd7 {[%clk 0:00:02]} 45. Rxh6 {[%clk 0:00:24]}  Rb8 {[%clk 0:00:02]} 46. f6 {[%clk 0:00:24]}  Rf8 {[%clk 0:00:02]} 47. f7 {[%clk 0:00:24]}  Ke7 {[%clk 0:00:02]} 48. Kf5 {[%clk 0:00:24]}  Bc7 {[%clk 0:00:02]} 49. Rc6 {[%clk 0:00:23]}  Kd7 {[%clk 0:00:02]} 50. Rxc5 {[%clk 0:00:22]}  Bd6 {[%clk 0:00:03]} 51. Ra5 {[%clk 0:00:22]} 1-0


[Site "https://www.chess.com"]

[Event "Titled Tuesday Blitz January 03 Early 2023"]
[White "Makarian, Rudik"]
[Black "Ordekalog"]
[WhiteFideId "44105681"]
[WhiteElo "2545"]
[BlackElo "2701"]
[Result "1-0"]
[Round "04"]
[TimeControl "180+2"]
[Date "2023.01.03"]
[WhiteClock "0:00:35"]
[BlackClock "0:00:31"]

1. d4 {[%clk 0:03:00]}  d5 {[%clk 0:02:12]} 2. c4 {[%clk 0:03:00]}  e6 {[%clk 0:02:12]} 3. Nf3 {[%clk 0:03:00]}  c5 {[%clk 0:02:13]} 4. cxd5 {[%clk 0:03:00]}  exd5 {[%clk 0:02:13]} 5. Nc3 {[%clk 0:03:01]}  Nc6 {[%clk 0:02:14]} 6. g3 {[%clk 0:03:01]}  Nf6 {[%clk 0:02:14]} 7. Bg2 {[%clk 0:03:01]}  Be7 {[%clk 0:02:15]} 8. O-O {[%clk 0:03:01]}  O-O {[%clk 0:02:15]} 9. dxc5 {[%clk 0:03:01]}  Bxc5 {[%clk 0:02:16]} 10. b3 {[%clk 0:03:02]}  Re8 {[%clk 0:02:15]} 11. Bb2 {[%clk 0:03:02]}  a6 {[%clk 0:02:16]} 12. Rc1 {[%clk 0:03:02]}  Ba7 {[%clk 0:02:15]} 13. e3 {[%clk 0:03:02]}  Bg4 {[%clk 0:02:15]} 14. Ne2 {[%clk 0:03:00]}  Rc8 {[%clk 0:02:12]} 15. h3 {[%clk 0:03:00]}  Be6 {[%clk 0:02:08]} 16. Nf4 {[%clk 0:02:56]}  Ne4 {[%clk 0:02:07]} 17. a3 {[%clk 0:02:36]}  Qd7 {[%clk 0:02:04]} 18. Kh2 {[%clk 0:02:34]}  h6 {[%clk 0:02:02]} 19. Nh5 {[%clk 0:02:27]}  f6 {[%clk 0:02:00]} 20. Nf4 {[%clk 0:02:27]}  Bf7 {[%clk 0:01:59]} 21. b4 {[%clk 0:02:20]}  g5 {[%clk 0:01:46]} 22. Ne2 {[%clk 0:02:16]}  Bh5 {[%clk 0:01:37]} 23. Qb3 {[%clk 0:02:08]}  Rcd8 {[%clk 0:01:31]} 24. Rcd1 {[%clk 0:02:00]}  Kg7 {[%clk 0:01:27]} 25. Rd3 {[%clk 0:01:46]}  Qf5 {[%clk 0:01:14]} 26. Ned4 {[%clk 0:01:32]}  Nxd4 {[%clk 0:01:09]} 27. Nxd4 {[%clk 0:01:33]}  Qd7 {[%clk 0:01:03]} 28. Kg1 {[%clk 0:01:13]}  Bg6 {[%clk 0:01:02]} 29. Rdd1 {[%clk 0:01:13]}  h5 {[%clk 0:00:57]} 30. Ne2 {[%clk 0:00:47]}  Nxf2 {[%clk 0:00:52]} 31. Rxf2 {[%clk 0:00:46]}  Rxe3 {[%clk 0:00:49]} 32. Bxf6+ {[%clk 0:00:45]}  Kh6 {[%clk 0:00:49]} 33. Qb2 {[%clk 0:00:41]}  Rde8 {[%clk 0:00:42]} 34. Bd4 {[%clk 0:00:37]}  Bxd4 {[%clk 0:00:37]} 35. Nxd4 {[%clk 0:00:37]}  h4 {[%clk 0:00:36]} 36. gxh4 {[%clk 0:00:37]}  gxh4 {[%clk 0:00:35]} 37. Nf3 {[%clk 0:00:35]}  Be4 {[%clk 0:00:31]} 38. Qf6+ {[%clk 0:00:35]} 1-0


[Site "https://www.chess.com"]

[Event "Titled Tuesday Blitz January 03 Early 2023"]
[White "Jones, Gawain C B"]
[Black "Goryachkina, Aleksandra"]
[WhiteFideId "409561"]
[BlackFideId "4147103"]
[WhiteElo "2618"]
[BlackElo "2571"]
[Result "1-0"]
[Round "04"]
[TimeControl "180+2"]
[Date "2023.01.03"]
[WhiteClock "0:01:04"]
[BlackClock "0:00:08"]

1. Nf3 {[%clk 0:03:00]}  d5 {[%clk 0:02:59]} 2. g3 {[%clk 0:03:01]}  g6 {[%clk 0:02:57]} 3. Bg2 {[%clk 0:02:59]}  Bg7 {[%clk 0:02:57]} 4. O-O {[%clk 0:03:00]}  Nf6 {[%clk 0:02:57]} 5. c4 {[%clk 0:02:59]}  c6 {[%clk 0:02:57]} 6. b3 {[%clk 0:02:59]}  Ne4 {[%clk 0:02:56]} 7. d4 {[%clk 0:02:59]}  O-O {[%clk 0:02:56]} 8. Bb2 {[%clk 0:03:00]}  Bf5 {[%clk 0:02:55]} 9. Nbd2 {[%clk 0:02:58]}  a5 {[%clk 0:02:51]} 10. Nh4 {[%clk 0:02:56]}  Nxd2 {[%clk 0:02:46]} 11. Qxd2 {[%clk 0:02:57]}  Be6 {[%clk 0:02:44]} 12. Rac1 {[%clk 0:02:49]}  a4 {[%clk 0:02:37]} 13. Bc3 {[%clk 0:02:27]}  axb3 {[%clk 0:02:32]} 14. axb3 {[%clk 0:02:28]}  dxc4 {[%clk 0:02:11]} 15. bxc4 {[%clk 0:02:28]}  Bxc4 {[%clk 0:02:09]} 16. Rfe1 {[%clk 0:02:23]}  Nd7 {[%clk 0:02:01]} 17. e4 {[%clk 0:02:21]}  Ra2 {[%clk 0:01:46]} 18. Rc2 {[%clk 0:02:19]}  Qa8 {[%clk 0:01:33]} 19. Nf3 {[%clk 0:02:08]}  Rxc2 {[%clk 0:01:25]} 20. Qxc2 {[%clk 0:02:09]}  Qa2 {[%clk 0:01:23]} 21. Qc1 {[%clk 0:02:01]}  Ra8 {[%clk 0:01:18]} 22. h4 {[%clk 0:01:55]}  b5 {[%clk 0:00:55]} 23. h5 {[%clk 0:01:51]}  Qa4 {[%clk 0:00:43]} 24. h6 {[%clk 0:01:49]}  Bh8 {[%clk 0:00:42]} 25. d5 {[%clk 0:01:30]}  cxd5 {[%clk 0:00:22]} 26. Bxh8 {[%clk 0:01:29]}  Kxh8 {[%clk 0:00:22]} 27. exd5 {[%clk 0:01:29]}  Nf6 {[%clk 0:00:18]} 28. Ng5 {[%clk 0:01:19]}  Kg8 {[%clk 0:00:17]} 29. d6 {[%clk 0:01:16]}  Re8 {[%clk 0:00:15]} 30. Qc3 {[%clk 0:01:08]}  Be6 {[%clk 0:00:08]} 31. dxe7 {[%clk 0:01:04]} 1-0


[Site "https://www.chess.com"]

[Event "Titled Tuesday Blitz January 03 Early 2023"]
[White "Lashkin, Jegor"]
[Black "Dourerassou, Jonathan"]
[WhiteFideId "13907808"]
[BlackFideId "628050"]
[WhiteElo "2416"]
[BlackElo "2414"]
[Result "0-1"]
[Round "04"]
[TimeControl "180+2"]
[Date "2023.01.03"]
[WhiteClock "0:00:06"]
[BlackClock "0:00:36"]

1. c4 {[%clk 0:03:00]}  Nf6 {[%clk 0:02:59]} 2. Nf3 {[%clk 0:02:58]}  g6 {[%clk 0:03:00]} 3. Nc3 {[%clk 0:02:58]}  Bg7 {[%clk 0:03:00]} 4. e4 {[%clk 0:02:58]}  d6 {[%clk 0:03:01]} 5. d4 {[%clk 0:02:58]}  O-O {[%clk 0:03:02]} 6. Be2 {[%clk 0:02:58]}  Nbd7 {[%clk 0:03:02]} 7. O-O {[%clk 0:02:58]}  a6 {[%clk 0:03:03]} 8. Be3 {[%clk 0:02:58]}  c5 {[%clk 0:03:03]} 9. h3 {[%clk 0:02:51]}  cxd4 {[%clk 0:03:00]} 10. Nxd4 {[%clk 0:02:52]}  Nc5 {[%clk 0:03:01]} 11. Qc2 {[%clk 0:02:52]}  Bd7 {[%clk 0:03:01]} 12. Rfd1 {[%clk 0:02:43]}  Rc8 {[%clk 0:03:00]} 13. Rac1 {[%clk 0:02:40]}  Qa5 {[%clk 0:03:00]} 14. a3 {[%clk 0:02:39]}  Qc7 {[%clk 0:02:45]} 15. b4 {[%clk 0:02:30]}  Ne6 {[%clk 0:02:45]} 16. Qd2 {[%clk 0:02:21]}  Nxd4 {[%clk 0:02:43]} 17. Bxd4 {[%clk 0:02:21]}  Be6 {[%clk 0:02:42]} 18. Nd5 {[%clk 0:02:17]}  Bxd5 {[%clk 0:02:42]} 19. exd5 {[%clk 0:02:12]}  Qd7 {[%clk 0:02:38]} 20. Bf3 {[%clk 0:02:06]}  Qa4 {[%clk 0:02:36]} 21. Qd3 {[%clk 0:01:59]}  Nd7 {[%clk 0:02:34]} 22. Bxg7 {[%clk 0:01:48]}  Kxg7 {[%clk 0:02:35]} 23. Qd4+ {[%clk 0:01:46]}  Nf6 {[%clk 0:02:23]} 24. Rd3 {[%clk 0:01:41]}  Rc7 {[%clk 0:02:21]} 25. Qe3 {[%clk 0:01:25]}  Rfc8 {[%clk 0:02:15]} 26. c5 {[%clk 0:01:24]}  a5 {[%clk 0:02:02]} 27. Rd4 {[%clk 0:01:13]}  axb4 {[%clk 0:01:55]} 28. axb4 {[%clk 0:01:14]}  Qb5 {[%clk 0:01:34]} 29. Rdc4 {[%clk 0:01:02]}  Nd7 {[%clk 0:01:23]} 30. Bg4 {[%clk 0:00:42]}  Ne5 {[%clk 0:01:05]} 31. Bxc8 {[%clk 0:00:33]}  Nxc4 {[%clk 0:01:04]} 32. Qc3+ {[%clk 0:00:31]}  Ne5 {[%clk 0:01:02]} 33. f4 {[%clk 0:00:30]}  Rxc8 {[%clk 0:00:50]} 34. fxe5 {[%clk 0:00:30]}  dxc5 {[%clk 0:00:46]} 35. bxc5 {[%clk 0:00:28]}  b6 {[%clk 0:00:46]} 36. c6 {[%clk 0:00:18]}  Qxd5 {[%clk 0:00:45]} 37. c7 {[%clk 0:00:18]}  b5 {[%clk 0:00:42]} 38. Qe3 {[%clk 0:00:12]}  b4 {[%clk 0:00:39]} 39. Qb6 {[%clk 0:00:12]}  Qxe5 {[%clk 0:00:36]} 40. Qb7 {[%clk 0:00:08]}  Qe3+ {[%clk 0:00:35]} 41. Kh2 {[%clk 0:00:07]}  Qf4+ {[%clk 0:00:35]} 42. g3 {[%clk 0:00:06]}  Qd2+ {[%clk 0:00:36]} 0-1


[Site "https://www.chess.com"]

[Event "Titled Tuesday Blitz January 03 Early 2023"]
[White "Madaminov, Mukhiddin"]
[Black "Tatarinov, Dmitry"]
[WhiteFideId "14210703"]
[BlackFideId "24160067"]
[WhiteElo "2422"]
[BlackElo "2310"]
[Result "1-0"]
[Round "04"]
[TimeControl "180+2"]
[Date "2023.01.03"]
[WhiteClock "0:01:59"]
[BlackClock "0:01:53"]

1. d4 {[%clk 0:03:00]}  Nf6 {[%clk 0:02:53]} 2. Nc3 {[%clk 0:03:00]}  d5 {[%clk 0:02:49]} 3. Bf4 {[%clk 0:03:01]}  a6 {[%clk 0:02:50]} 4. e3 {[%clk 0:03:00]}  Bf5 {[%clk 0:02:47]} 5. f3 {[%clk 0:03:00]}  h5 {[%clk 0:02:46]} 6. Bd3 {[%clk 0:02:58]}  Bxd3 {[%clk 0:02:47]} 7. Qxd3 {[%clk 0:02:57]}  e6 {[%clk 0:02:47]} 8. Nge2 {[%clk 0:02:57]}  c5 {[%clk 0:02:44]} 9. O-O-O {[%clk 0:02:56]}  Nc6 {[%clk 0:02:44]} 10. e4 {[%clk 0:02:56]}  dxe4 {[%clk 0:02:43]} 11. Nxe4 {[%clk 0:02:49]}  cxd4 {[%clk 0:02:42]} 12. Nxd4 {[%clk 0:02:45]}  Nxd4 {[%clk 0:02:42]} 13. Qxd4 {[%clk 0:02:42]}  Qxd4 {[%clk 0:02:43]} 14. Rxd4 {[%clk 0:02:42]}  Nxe4 {[%clk 0:02:43]} 15. Rxe4 {[%clk 0:02:43]}  O-O-O {[%clk 0:02:39]} 16. Rc4+ {[%clk 0:02:40]}  Kd7 {[%clk 0:02:39]} 17. Rc7+ {[%clk 0:02:39]}  Ke8 {[%clk 0:02:40]} 18. Rxb7 {[%clk 0:02:40]}  Be7 {[%clk 0:02:32]} 19. Rd1 {[%clk 0:02:38]}  g5 {[%clk 0:02:31]} 20. Be5 {[%clk 0:02:18]}  Rg8 {[%clk 0:02:27]} 21. c4 {[%clk 0:02:12]}  g4 {[%clk 0:02:25]} 22. f4 {[%clk 0:02:10]}  g3 {[%clk 0:02:20]} 23. h3 {[%clk 0:02:09]}  f6 {[%clk 0:02:20]} 24. Rxd8+ {[%clk 0:02:07]}  Bxd8 {[%clk 0:02:20]} 25. Bd6 {[%clk 0:02:07]}  e5 {[%clk 0:02:11]} 26. fxe5 {[%clk 0:02:07]}  fxe5 {[%clk 0:02:11]} 27. Bxe5 {[%clk 0:02:07]}  h4 {[%clk 0:02:08]} 28. Rb8 {[%clk 0:02:02]}  Ke7 {[%clk 0:01:53]} 29. Bc7 {[%clk 0:01:59]} 1-0


[Site "https://www.chess.com"]

[Event "Titled Tuesday Blitz January 03 Early 2023"]
[White "Boros, Denes"]
[Black "Leiva, Gianmarco"]
[WhiteFideId "722340"]
[BlackFideId "3804399"]
[WhiteElo "2406"]
[BlackElo "2392"]
[Result "1-0"]
[Round "04"]
[TimeControl "180+2"]
[Date "2023.01.03"]
[WhiteClock "0:00:19"]
[BlackClock "0:00:01"]

1. e4 {[%clk 0:03:00]}  c5 {[%clk 0:02:58]} 2. Nf3 {[%clk 0:03:00]}  d6 {[%clk 0:02:58]} 3. g3 {[%clk 0:03:00]}  g6 {[%clk 0:02:56]} 4. Bg2 {[%clk 0:03:00]}  Bg7 {[%clk 0:02:57]} 5. O-O {[%clk 0:03:01]}  Nc6 {[%clk 0:02:57]} 6. Re1 {[%clk 0:03:01]}  Nf6 {[%clk 0:02:56]} 7. a3 {[%clk 0:03:01]}  O-O {[%clk 0:02:56]} 8. c3 {[%clk 0:03:01]}  Bg4 {[%clk 0:02:50]} 9. h3 {[%clk 0:03:01]}  Bxf3 {[%clk 0:02:50]} 10. Bxf3 {[%clk 0:03:02]}  Rb8 {[%clk 0:02:44]} 11. d3 {[%clk 0:02:57]}  b5 {[%clk 0:02:43]} 12. Bf4 {[%clk 0:02:46]}  a5 {[%clk 0:02:40]} 13. Nd2 {[%clk 0:02:46]}  Nd7 {[%clk 0:02:25]} 14. Qc2 {[%clk 0:02:42]}  Qc7 {[%clk 0:01:44]} 15. h4 {[%clk 0:02:36]}  h6 {[%clk 0:01:29]} 16. Nf1 {[%clk 0:02:36]}  b4 {[%clk 0:01:27]} 17. Ne3 {[%clk 0:02:20]}  Rb7 {[%clk 0:01:20]} 18. Nd5 {[%clk 0:02:10]}  Qb8 {[%clk 0:01:20]} 19. axb4 {[%clk 0:02:07]}  axb4 {[%clk 0:01:19]} 20. Qc1 {[%clk 0:02:06]}  Kh7 {[%clk 0:01:18]} 21. Bd2 {[%clk 0:01:53]}  Rc8 {[%clk 0:00:53]} 22. Be2 {[%clk 0:01:33]}  e6 {[%clk 0:00:41]} 23. Ne3 {[%clk 0:01:32]}  Qc7 {[%clk 0:00:25]} 24. Nc4 {[%clk 0:01:26]}  Rcb8 {[%clk 0:00:24]} 25. Ra6 {[%clk 0:01:25]}  Nde5 {[%clk 0:00:22]} 26. Nxe5 {[%clk 0:01:14]}  Bxe5 {[%clk 0:00:22]} 27. Ra2 {[%clk 0:00:46]}  Bg7 {[%clk 0:00:21]} 28. Bf4 {[%clk 0:00:42]}  bxc3 {[%clk 0:00:14]} 29. bxc3 {[%clk 0:00:43]}  Qd7 {[%clk 0:00:04]} 30. Kg2 {[%clk 0:00:39]}  Rb3 {[%clk 0:00:04]} 31. Bd2 {[%clk 0:00:36]}  R8b6 {[%clk 0:00:03]} 32. Bd1 {[%clk 0:00:36]}  R3b5 {[%clk 0:00:03]} 33. Ba4 {[%clk 0:00:36]}  Rb1 {[%clk 0:00:03]} 34. Qxb1 {[%clk 0:00:35]}  Rxb1 {[%clk 0:00:04]} 35. Rxb1 {[%clk 0:00:36]}  Qc7 {[%clk 0:00:04]} 36. Rab2 {[%clk 0:00:35]}  Ne5 {[%clk 0:00:02]} 37. Bc2 {[%clk 0:00:33]}  c4 {[%clk 0:00:02]} 38. Rb7 {[%clk 0:00:33]}  Qc6 {[%clk 0:00:02]} 39. R1b6 {[%clk 0:00:33]}  Qc8 {[%clk 0:00:02]} 40. d4 {[%clk 0:00:30]}  Nd7 {[%clk 0:00:02]} 41. Rb2 {[%clk 0:00:29]}  Qc6 {[%clk 0:00:02]} 42. R2b4 {[%clk 0:00:25]}  f5 {[%clk 0:00:02]} 43. f3 {[%clk 0:00:22]}  fxe4 {[%clk 0:00:02]} 44. fxe4 {[%clk 0:00:22]}  Nf6 {[%clk 0:00:02]} 45. R4b6 {[%clk 0:00:22]}  Qc8 {[%clk 0:00:01]} 46. h5 {[%clk 0:00:21]}  Nxh5 {[%clk 0:00:01]} 47. Bc1 {[%clk 0:00:18]}  Nf6 {[%clk 0:00:02]} 48. Bf4 {[%clk 0:00:18]}  e5 {[%clk 0:00:02]} 49. dxe5 {[%clk 0:00:18]}  dxe5 {[%clk 0:00:02]} 50. Bxe5 {[%clk 0:00:19]}  Qe8 {[%clk 0:00:01]} 51. Bxf6 {[%clk 0:00:19]} 1-0


[Site "https://www.chess.com"]

[Event "Titled Tuesday Blitz January 03 Early 2023"]
[White "Alfaro, William"]
[Black "Tan, Zhongyi"]
[WhiteFideId "6100457"]
[BlackFideId "8603642"]
[WhiteElo "2134"]
[BlackElo "2517"]
[Result "0-1"]
[Round "04"]
[TimeControl "180+2"]
[Date "2023.01.03"]
[WhiteClock "0:01:02"]
[BlackClock "0:01:27"]

1. Nf3 {[%clk 0:03:00]}  d5 {[%clk 0:02:57]} 2. g3 {[%clk 0:02:59]}  Nf6 {[%clk 0:02:55]} 3. Bg2 {[%clk 0:03:00]}  c5 {[%clk 0:02:55]} 4. O-O {[%clk 0:02:59]}  h6 {[%clk 0:02:51]} 5. d3 {[%clk 0:02:59]}  Nc6 {[%clk 0:02:50]} 6. Nbd2 {[%clk 0:02:57]}  e5 {[%clk 0:02:50]} 7. e4 {[%clk 0:02:56]}  Be7 {[%clk 0:02:45]} 8. exd5 {[%clk 0:02:54]}  Nxd5 {[%clk 0:02:45]} 9. Re1 {[%clk 0:02:55]}  f6 {[%clk 0:02:29]} 10. a3 {[%clk 0:02:05]}  O-O {[%clk 0:02:28]} 11. Nc4 {[%clk 0:01:57]}  Bg4 {[%clk 0:02:25]} 12. h3 {[%clk 0:01:56]}  Bh5 {[%clk 0:02:25]} 13. Qd2 {[%clk 0:01:52]}  Qd7 {[%clk 0:02:18]} 14. Kh2 {[%clk 0:01:48]}  Rad8 {[%clk 0:02:16]} 15. Ne3 {[%clk 0:01:45]}  Nc7 {[%clk 0:02:14]} 16. b3 {[%clk 0:01:43]}  b6 {[%clk 0:02:09]} 17. g4 {[%clk 0:01:37]}  Bf7 {[%clk 0:02:08]} 18. Nf5 {[%clk 0:01:31]}  Rfe8 {[%clk 0:02:07]} 19. Qe3 {[%clk 0:01:16]}  Nd5 {[%clk 0:02:06]} 20. Qe2 {[%clk 0:01:14]}  Bf8 {[%clk 0:02:05]} 21. Bd2 {[%clk 0:01:12]}  Be6 {[%clk 0:01:55]} 22. Ng3 {[%clk 0:01:05]}  Nf4 {[%clk 0:01:42]} 23. Bxf4 {[%clk 0:01:05]}  exf4 {[%clk 0:01:43]} 24. Nh5 {[%clk 0:01:02]}  Bxg4 {[%clk 0:01:35]} 25. Qd2 {[%clk 0:01:02]}  Bxh5 {[%clk 0:01:34]} 26. Qxf4 {[%clk 0:01:02]}  Bd6 {[%clk 0:01:27]} 0-1


[Site "https://www.chess.com"]

[Event "Titled Tuesday Blitz January 03 Early 2023"]
[White "Nakamura, Hikaru"]
[Black "Salimova, Nurgyul"]
[WhiteFideId "2016192"]
[BlackFideId "2915138"]
[WhiteElo "2775"]
[BlackElo "2391"]
[Result "1-0"]
[Round "04"]
[TimeControl "180+2"]
[Date "2023.01.03"]
[WhiteClock "0:01:00"]
[BlackClock "0:00:02"]

1. g3 {[%clk 0:03:00]}  d5 {[%clk 0:02:59]} 2. Bg2 {[%clk 0:03:00]}  Nf6 {[%clk 0:02:58]} 3. d3 {[%clk 0:02:58]}  c6 {[%clk 0:02:55]} 4. Nd2 {[%clk 0:02:58]}  g6 {[%clk 0:02:54]} 5. e4 {[%clk 0:02:58]}  dxe4 {[%clk 0:02:39]} 6. dxe4 {[%clk 0:02:58]}  Bg7 {[%clk 0:02:40]} 7. Ngf3 {[%clk 0:02:57]}  O-O {[%clk 0:02:39]} 8. O-O {[%clk 0:02:54]}  Na6 {[%clk 0:02:36]} 9. e5 {[%clk 0:02:52]}  Nd5 {[%clk 0:02:35]} 10. a3 {[%clk 0:02:51]}  Nc5 {[%clk 0:02:18]} 11. Qe2 {[%clk 0:02:36]}  Bf5 {[%clk 0:02:11]} 12. Nb1 {[%clk 0:02:29]}  Qc8 {[%clk 0:01:32]} 13. Nd4 {[%clk 0:02:24]}  Bh3 {[%clk 0:01:31]} 14. c4 {[%clk 0:02:16]}  Bxg2 {[%clk 0:01:30]} 15. Kxg2 {[%clk 0:02:17]}  Nb6 {[%clk 0:01:25]} 16. f4 {[%clk 0:02:12]}  Rd8 {[%clk 0:01:23]} 17. Be3 {[%clk 0:02:12]}  f6 {[%clk 0:01:09]} 18. Nd2 {[%clk 0:02:00]}  fxe5 {[%clk 0:01:07]} 19. fxe5 {[%clk 0:02:01]}  Bxe5 {[%clk 0:01:05]} 20. N4f3 {[%clk 0:02:01]}  Bxb2 {[%clk 0:00:33]} 21. Bxc5 {[%clk 0:01:55]}  Bxa1 {[%clk 0:00:32]} 22. Rxa1 {[%clk 0:01:56]}  Qf5 {[%clk 0:00:31]} 23. Bf2 {[%clk 0:01:53]}  Rd3 {[%clk 0:00:19]} 24. Nd4 {[%clk 0:01:45]}  Rxd2 {[%clk 0:00:15]} 25. Qxd2 {[%clk 0:01:46]}  Qe4+ {[%clk 0:00:15]} 26. Kg1 {[%clk 0:01:45]}  Nxc4 {[%clk 0:00:15]} 27. Qc3 {[%clk 0:01:43]}  Ne5 {[%clk 0:00:11]} 28. Qb3+ {[%clk 0:01:40]}  Qd5 {[%clk 0:00:10]} 29. Qxd5+ {[%clk 0:01:37]}  cxd5 {[%clk 0:00:11]} 30. Re1 {[%clk 0:01:37]}  Nc4 {[%clk 0:00:09]} 31. Rxe7 {[%clk 0:01:36]}  Nxa3 {[%clk 0:00:09]} 32. Ne6 {[%clk 0:01:36]}  Nb5 {[%clk 0:00:06]} 33. Rg7+ {[%clk 0:01:34]}  Kh8 {[%clk 0:00:06]} 34. Rxb7 {[%clk 0:01:35]}  Re8 {[%clk 0:00:05]} 35. Rxb5 {[%clk 0:01:21]}  Rxe6 {[%clk 0:00:05]} 36. Bxa7 {[%clk 0:01:20]}  Rd6 {[%clk 0:00:04]} 37. Bd4+ {[%clk 0:01:19]}  Kg8 {[%clk 0:00:05]} 38. Rb8+ {[%clk 0:01:20]}  Kf7 {[%clk 0:00:04]} 39. Rb7+ {[%clk 0:01:20]}  Ke6 {[%clk 0:00:04]} 40. Rb6 {[%clk 0:01:18]}  Rxb6 {[%clk 0:00:01]} 41. Bxb6 {[%clk 0:01:19]}  Ke5 {[%clk 0:00:02]} 42. Kf2 {[%clk 0:01:16]}  Ke4 {[%clk 0:00:03]} 43. Be3 {[%clk 0:01:13]}  d4 {[%clk 0:00:03]} 44. Bh6 {[%clk 0:01:14]}  d3 {[%clk 0:00:03]} 45. Bd2 {[%clk 0:01:10]}  h5 {[%clk 0:00:03]} 46. h3 {[%clk 0:01:00]}  Kd4 {[%clk 0:00:02]} 47. Kf3 {[%clk 0:01:00]} 1-0


[Site "https://www.chess.com"]

[Event "Titled Tuesday Blitz January 03 Early 2023"]
[White "Fedoseev, Vladimir"]
[Black "Aloma Vidal, Robert"]
[WhiteFideId "24130737"]
[BlackFideId "2260409"]
[WhiteElo "2680"]
[BlackElo "2442"]
[Result "1-0"]
[Round "04"]
[TimeControl "180+2"]
[Date "2023.01.03"]
[WhiteClock "0:00:46"]
[BlackClock "0:00:01"]

1. d4 {[%clk 0:03:00]}  d5 {[%clk 0:02:59]} 2. c4 {[%clk 0:02:58]}  c6 {[%clk 0:03:00]} 3. Nf3 {[%clk 0:02:57]}  Nf6 {[%clk 0:03:00]} 4. e3 {[%clk 0:02:56]}  e6 {[%clk 0:03:01]} 5. Nbd2 {[%clk 0:02:53]}  Nbd7 {[%clk 0:03:01]} 6. b3 {[%clk 0:02:51]}  b6 {[%clk 0:03:00]} 7. Bb2 {[%clk 0:02:52]}  Bb7 {[%clk 0:03:00]} 8. g3 {[%clk 0:02:51]}  g6 {[%clk 0:02:29]} 9. Bg2 {[%clk 0:02:50]}  Bg7 {[%clk 0:02:29]} 10. O-O {[%clk 0:02:50]}  O-O {[%clk 0:02:29]} 11. Qc2 {[%clk 0:02:50]}  Rc8 {[%clk 0:02:28]} 12. Rac1 {[%clk 0:02:50]}  Re8 {[%clk 0:02:27]} 13. b4 {[%clk 0:02:45]}  c5 {[%clk 0:02:21]} 14. dxc5 {[%clk 0:02:33]}  bxc5 {[%clk 0:02:21]} 15. bxc5 {[%clk 0:02:29]}  Nxc5 {[%clk 0:02:16]} 16. Bd4 {[%clk 0:02:25]}  dxc4 {[%clk 0:02:08]} 17. Nxc4 {[%clk 0:02:23]}  Be4 {[%clk 0:02:03]} 18. Qc3 {[%clk 0:02:08]}  Nd5 {[%clk 0:01:54]} 19. Qa3 {[%clk 0:01:55]}  Bxd4 {[%clk 0:01:50]} 20. Nxd4 {[%clk 0:01:54]}  Bxg2 {[%clk 0:01:42]} 21. Kxg2 {[%clk 0:01:55]}  Qe7 {[%clk 0:01:13]} 22. Rfd1 {[%clk 0:01:54]}  Ne4 {[%clk 0:01:01]} 23. Qxe7 {[%clk 0:01:51]}  Rxe7 {[%clk 0:01:01]} 24. Nb5 {[%clk 0:01:25]}  Kg7 {[%clk 0:00:51]} 25. Na5 {[%clk 0:01:13]}  Rxc1 {[%clk 0:00:42]} 26. Rxc1 {[%clk 0:01:14]}  Rd7 {[%clk 0:00:36]} 27. Rc2 {[%clk 0:01:11]}  Nd6 {[%clk 0:00:31]} 28. Nd4 {[%clk 0:01:06]}  Nf5 {[%clk 0:00:22]} 29. Nxf5+ {[%clk 0:01:02]}  gxf5 {[%clk 0:00:23]} 30. a3 {[%clk 0:00:58]}  Rc7 {[%clk 0:00:21]} 31. Rxc7 {[%clk 0:00:54]}  Nxc7 {[%clk 0:00:22]} 32. Nc6 {[%clk 0:00:54]}  a6 {[%clk 0:00:20]} 33. a4 {[%clk 0:00:54]}  Kf6 {[%clk 0:00:19]} 34. f4 {[%clk 0:00:51]}  Nd5 {[%clk 0:00:17]} 35. Kf3 {[%clk 0:00:52]}  Nc3 {[%clk 0:00:18]} 36. a5 {[%clk 0:00:52]}  Nd5 {[%clk 0:00:16]} 37. Ke2 {[%clk 0:00:52]}  Kg7 {[%clk 0:00:07]} 38. Kd3 {[%clk 0:00:52]}  Kf8 {[%clk 0:00:07]} 39. Kd4 {[%clk 0:00:49]}  Ke8 {[%clk 0:00:05]} 40. Nb8 {[%clk 0:00:50]}  Nb4 {[%clk 0:00:02]} 41. Kc5 {[%clk 0:00:50]}  Nc2 {[%clk 0:00:01]} 42. Nxa6 {[%clk 0:00:49]}  Kd7 {[%clk 0:00:01]} 43. Nb8+ {[%clk 0:00:46]}  Kc8 {[%clk 0:00:01]} 44. Nc6 {[%clk 0:00:46]} 1-0


[Site "https://www.chess.com"]